bitfinex-derivatives/quotes_SOLF0:USTF0_20250626
["timestamp","ask_amount","ask_price","bid_price","bid_amount"]
[1750942587616,5.12068811,142.91,142.9,6.9946]
[1750942589019,36.5,142.94,142.88,8.76995449]
[1750942589319,36.5,142.94,142.9,6.51965449]
[1750942589719,36.5,142.94,142.93,6.9934]
[1750942590020,41.65528806,142.94,142.93,6.9934]
[1750942590317,36.5,142.94,142.93,6.9934]
[1750942594622,4.37655036,142.97,142.96,6.9919]
[1750942594821,5.15270449,142.97,142.96,6.9919]
[1750942596021,36.46,142.99,142.93,6.51965449]
[1750942596224,5.15565881,142.98,142.93,6.51965449]
[1750942596520,43.4506,142.99,142.93,6.51965449]
[1750942596721,5.1538611,142.98,142.96,6.9915]
[1750942596922,43.4506,142.99,142.96,6.9915]
[1750942597118,5.1538611,142.98,142.96,6.9915]
[1750942597326,43.4506,142.99,142.96,6.9915]
[1750942597524,5.15209294,142.98,142.97,6.9914]
[1750942598826,36.46,142.99,142.97,6.9914]
[1750942599019,5.15185294,142.98,142.97,6.9914]
[1750942599928,36.46,142.99,142.98,6.9909]
[1750942600130,41.60896502,142.99,142.98,6.9909]
[1750942601327,36.46,142.99,142.98,6.9909]
[1750942602430,36.46,142.99,142.97,6.9912]
[1750942603118,43.4505,142.99,142.96,6.9917]
[1750942603322,36.46,142.99,142.93,2.3789]
[1750942603830,36.46,142.99,142.97,6.9912]
[1750942604438,43.4505,142.99,142.96,6.9916]
[1750942605139,36.46,142.99,142.97,6.9911]
[1750942605740,36.46,142.99,142.93,2.3789]
[1750942606239,36.46,142.99,142.97,6.9912]
[1750942607032,36.46,142.99,142.98,6.9909]
[1750942607233,36.46,142.99,142.93,2.3789]
[1750942607743,5.17915699,143.0,142.93,38.8189]
[1750942607945,12.16865699,143.01,142.93,45.33855449]
[1750942608246,6.9895,143.01,142.98,6.9904]
[1750942608445,6.9895,143.01,142.93,45.33855449]
[1750942609547,6.9895,143.01,142.99,6.9902]
[1750942610350,12.19109695,143.01,142.99,6.9902]
[1750942611849,5.20159695,143.01,142.99,6.9902]
[1750942613252,5.20159695,143.01,142.93,2.3789]
[1750942613648,5.20159695,143.0,142.93,2.3789]
[1750942613843,6.9903,143.0,142.97,6.9912]
[1750942614043,12.19189695,143.0,142.97,6.9912]
[1750942614346,6.9907,142.99,142.96,6.9917]
[1750942614859,6.9902,143.0,142.93,2.3789]
[1750942615062,5.21329668,142.99,142.93,2.3789]
[1750942615256,6.9902,143.0,142.93,2.3789]
[1750942615458,5.21433053,142.99,142.93,2.3789]
[1750942615659,6.9902,143.0,142.97,6.9913]
[1750942615857,5.21433053,142.99,142.97,6.9913]
[1750942616052,6.9906,142.99,142.97,6.9914]
[1750942616859,6.9902,143.0,142.97,6.9914]
[1750942617062,5.21448784,142.99,142.97,6.9914]
[1750942617363,12.20498784,142.99,142.97,6.9914]
[1750942617563,5.21448784,143.0,142.93,2.3789]
[1750942617864,5.21448784,142.99,142.93,2.3789]
[1750942618157,6.9912,142.98,142.95,6.9921]
[1750942618362,43.4312,142.98,142.95,6.9921]
[1750942618658,36.44,142.98,142.93,2.3789]
[1750942619456,41.64508013,142.98,142.93,2.3789]
[1750942620461,43.4311,142.98,142.93,2.3789]
[1750942621367,36.44,142.98,142.97,6.9914]
[1750942623565,43.4297,143.01,142.93,2.3789]
[1750942623762,5.20195633,143.0,142.93,2.3789]
[1750942623970,5.20195633,142.99,142.98,6.9909]
[1750942624464,5.20195633,142.99,142.94,50.4256]
[1750942624663,36.44,143.01,143.0,6.9899]
[1750942624861,5.20453675,143.01,142.95,13.9847]
[1750942625062,5.20453675,143.0,142.95,20.50435449]
[1750942625259,4.40112478,143.02,142.95,20.50435449]
[1750942625463,5.20743324,143.01,142.95,20.50435449]
[1750942625663,5.20743324,143.0,142.96,6.51965449]
[1750942625969,4.40112478,143.03,142.96,6.51965449]
[1750942626169,4.40112478,143.03,142.95,13.9847]
[1750942626170,5.20772594,143.02,142.97,6.51965449]
[1750942626364,5.20772594,143.01,142.97,6.51965449]
[1750942626670,40.78112478,143.04,142.97,6.51965449]
[1750942626872,5.20835652,143.03,142.97,6.51965449]
[1750942627167,5.20835652,143.02,143.01,6.9891]
[1750942628271,12.19735652,143.02,142.96,6.51965449]
[1750942628579,5.20835652,143.01,142.95,20.50435449]
[1750942628873,4.41901605,143.03,143.0,6.9896]
[1750942628874,11.40781605,143.03,143.0,6.9896]
[1750942629062,5.24558476,143.02,143.0,6.9896]
[1750942629372,5.24743906,143.01,143.0,6.9896]
[1750942631474,36.38,143.04,142.97,6.51965449]
[1750942631774,12.24224991,143.03,143.0,6.9896]
[1750942631975,5.25344991,143.02,143.0,6.9896]
[1750942632275,5.25344991,143.01,143.0,6.9896]
[1750942632573,5.25344991,143.01,142.99,6.9902]
[1750942632775,5.25344991,143.0,142.99,6.9902]
[1750942633773,5.25344991,143.0,142.98,6.9907]
[1750942633977,5.25344991,142.99,142.98,6.9907]
[1750942639377,36.38,143.09,142.98,50.3617]
[1750942639581,4.46151574,143.08,142.99,6.53173562]
[1750942639783,4.46151574,143.07,142.99,8.90483562]
[1750942639970,4.46151574,143.06,142.99,11.16893562]
[1750942640276,4.46111974,143.07,142.99,4.6372]
[1750942640478,6.9865,143.07,143.02,6.9889]
[1750942640978,4.44450404,143.06,143.02,6.9889]
[1750942641184,11.43150404,143.06,143.01,6.9892]
[1750942641372,6.987,143.06,143.01,6.9892]
[1750942641885,11.43150404,143.06,143.01,6.9892]
[1750942642178,6.987,143.06,143.01,6.9892]
[1750942642773,6.9877,143.05,143.01,6.9892]
[1750942643369,6.9881,143.04,143.01,6.9892]
[1750942643579,40.82450404,143.05,142.96,6.53173562]
[1750942643780,40.82450404,143.04,142.95,41.1715]
[1750942643978,36.38,143.04,142.95,41.1715]
[1750942644373,6.9889,143.03,142.95,41.1715]
[1750942644883,6.9889,143.03,143.0,6.9895]
[1750942645084,43.3682,143.04,142.95,41.1715]
[1750942645379,43.3682,143.04,143.01,6.9892]
[1750942646080,47.81270404,143.04,143.01,6.9892]
[1750942646379,43.3682,143.04,143.01,6.9892]
[1750942647373,47.81270404,143.04,143.01,6.9892]
[1750942647572,43.3682,143.04,143.01,6.9892]
[1750942648470,47.81270404,143.04,143.01,6.9892]
[1750942648768,43.3682,143.04,143.01,6.9892]
[1750942649170,36.38,143.04,143.01,6.9892]
[1750942649681,43.3685,143.04,143.01,6.9892]
[1750942650072,36.38,143.04,142.96,6.53173562]
[1750942650275,11.43498381,143.03,142.96,6.53173562]
[1750942650476,11.43498381,143.03,143.0,6.9899]
[1750942651281,5.14332554,143.02,143.0,6.9899]
[1750942651483,5.14332554,143.01,143.0,6.9899]
[1750942653782,5.14332554,143.01,142.99,6.9902]
[1750942653979,11.4379453,143.02,142.99,6.9902]
[1750942654170,5.15051489,143.01,142.99,6.9902]
[1750942654374,11.4379453,143.02,142.99,6.9902]
[1750942654582,5.1505193,143.01,142.99,6.9902]
[1750942654784,6.9895,143.01,142.98,6.9908]
[1750942654984,5.15014012,143.0,142.95,41.1715]
[1750942655183,4.44840832,143.03,142.95,41.1715]
[1750942655483,6.9897,143.01,142.98,6.9909]
[1750942655682,5.15003584,143.0,142.98,6.9909]
[1750942655883,6.9897,143.01,142.98,6.9909]
[1750942656084,5.15029988,143.0,142.98,6.9909]
[1750942656284,11.43810832,143.01,142.98,6.9909]
[1750942656485,5.15035474,143.0,142.98,6.9909]
[1750942656684,6.9897,143.01,142.98,6.9909]
[1750942656886,12.14046665,143.0,142.98,6.9909]
[1750942657077,6.9901,143.0,142.98,6.9909]
[1750942657478,6.9901,143.0,142.97,6.9912]
[1750942657678,6.9897,143.01,142.95,41.1715]
[1750942657879,5.14743249,143.0,142.95,41.1715]
[1750942658079,11.43810832,143.01,142.97,6.9909]
[1750942658288,5.14742126,143.0,142.97,6.9909]
[1750942658589,11.43810832,143.01,142.97,6.9909]
[1750942658886,5.14781317,143.0,142.97,6.9909]
[1750942659087,11.43810832,143.01,142.98,6.9909]
[1750942659289,5.12930051,143.0,142.98,6.9909]
[1750942659476,11.43810832,143.01,142.98,6.9909]
[1750942659676,5.12951926,143.0,142.98,6.9909]
[1750942659876,11.43810832,143.01,142.98,6.9909]
[1750942660090,12.11941926,143.0,142.98,6.9909]
[1750942660787,6.9899,143.0,142.98,6.9909]
[1750942663290,5.13247532,142.99,142.98,6.9909]
[1750942671490,36.32,143.06,142.98,6.53173562]
[1750942671792,4.43011046,143.05,142.98,6.53173562]
[1750942671999,4.43011046,143.04,142.98,6.53173562]
[1750942672202,4.43011046,143.03,142.98,6.53173562]
[1750942672498,6.9878,143.05,142.98,6.53173562]
[1750942672799,4.43003793,143.04,143.02,6.9887]
[1750942672998,4.43003793,143.03,143.02,6.9887]
[1750942673400,4.43003793,143.04,143.03,6.9885]
[1750942673599,4.43003793,143.04,142.98,6.53173562]
[1750942673797,36.32,143.06,142.98,6.53173562]
[1750942674002,11.41835826,143.05,143.02,6.9887]
[1750942674201,4.43045826,143.04,143.02,6.9887]
[1750942674402,6.9879,143.05,143.02,6.9887]
[1750942674604,4.43094791,143.04,143.02,6.9887]
[1750942674796,6.9879,143.05,143.02,6.9887]
[1750942674998,4.43094791,143.04,143.02,6.9887]
[1750942675202,6.9879,143.05,143.02,6.9887]
[1750942675398,4.43026933,143.04,143.02,6.9887]
[1750942675597,6.9879,143.05,143.02,6.9887]
[1750942675895,4.43059257,143.04,143.02,6.9887]
[1750942676205,6.988,143.04,143.01,6.9892]
[1750942676402,6.988,143.04,142.98,6.53173562]
[1750942676705,6.988,143.04,143.01,6.9891]
[1750942677092,43.3073,143.06,142.98,6.53173562]
[1750942677292,4.45318652,143.05,142.99,6.53173562]
[1750942677504,36.32,143.06,142.99,6.53173562]
[1750942677705,4.45365568,143.05,143.03,6.9882]
[1750942677906,43.3073,143.06,143.03,6.9882]
[1750942678098,4.45365568,143.05,143.03,6.9882]
[1750942678407,6.9875,143.05,143.02,6.9887]
[1750942679006,43.3073,143.06,143.03,6.9884]
[1750942679305,4.45333053,143.05,143.03,6.9884]
[1750942679498,43.3073,143.06,143.03,6.9884]
[1750942679700,4.45318531,143.05,143.03,6.9884]
[1750942679899,43.3073,143.06,143.03,6.9884]
[1750942680105,4.45318531,143.05,143.03,6.9884]
[1750942680307,43.3073,143.06,143.03,6.9884]
[1750942680505,4.4529732,143.05,143.04,6.988]
[1750942680806,36.32,143.06,143.0,42.85173562]
[1750942681002,36.32,143.06,143.05,6.9875]
[1750942681201,6.9858,143.09,143.01,6.53173562]
[1750942681202,4.45355455,143.08,143.01,6.53173562]
[1750942681502,36.32,143.09,143.01,6.53173562]
[1750942681695,36.32,143.12,143.02,22.99873562]
[1750942681897,4.45398605,143.11,143.02,22.99873562]
[1750942682098,4.45398605,143.1,143.02,22.99873562]
[1750942682304,36.32,143.12,143.03,6.53173562]
[1750942682499,4.45831455,143.11,143.04,6.53173562]
[1750942682699,4.45831455,143.1,143.04,6.53173562]
[1750942683008,4.45831455,143.11,143.04,6.53173562]
[1750942683299,11.44311455,143.11,143.04,6.53173562]
[1750942683500,5.06778674,143.1,143.04,6.53173562]
[1750942683704,6.9848,143.11,143.04,6.53173562]
[1750942683905,5.06741764,143.1,143.08,6.9857]
[1750942684100,6.9848,143.11,143.08,6.9857]
[1750942684302,6.9851,143.1,143.08,6.9857]
[1750942684510,40.77650475,143.12,143.08,6.9857]
[1750942684708,5.06503352,143.11,143.08,6.9857]
[1750942685007,5.06503352,143.1,143.08,6.9857]
[1750942685203,6.9849,143.11,143.08,6.9857]
[1750942685407,5.0898034,143.1,143.08,6.9857]
[1750942685607,6.9849,143.11,143.08,6.9857]
[1750942685809,5.08781038,143.1,143.08,6.9857]
[1750942686009,6.9849,143.11,143.08,6.9857]
[1750942686204,5.08736001,143.1,143.09,6.9855]
[1750942686401,5.0852232,143.11,143.09,6.9855]
[1750942686602,36.32,143.12,143.03,42.85173562]
[1750942686803,5.0852232,143.11,143.1,6.9851]
[1750942687298,5.0852232,143.11,143.09,6.9853]
[1750942687503,36.32,143.12,143.09,6.9853]
[1750942687711,43.3041,143.12,143.03,42.85173562]
[1750942688312,36.32,143.12,143.04,6.53173562]
[1750942688910,36.32,143.12,143.1,6.9846]
[1750942689210,36.32,143.12,143.05,4.7204]
[1750942692112,6.9832,143.14,143.05,4.7204]
[1750942692713,6.9832,143.14,143.11,6.9843]
[1750942693109,41.32995513,143.15,143.11,6.9843]
[1750942693110,36.24,143.15,143.11,6.9843]
[1750942693704,6.9836,143.13,143.11,6.9843]
[1750942693910,6.9836,143.13,143.07,36.24]
[1750942694313,6.9834,143.14,143.11,6.9843]
[1750942694615,36.24,143.15,143.07,36.24]
[1750942694806,36.24,143.15,143.12,6.9837]
[1750942695115,43.2228,143.15,143.12,6.9837]
[1750942695612,43.2228,143.15,143.13,6.9835]
[1750942695916,43.2228,143.15,143.12,6.9839]
[1750942698016,36.24,143.15,143.11,6.9842]
[1750942698514,6.9833,143.14,143.11,6.9843]
[1750942699918,36.24,143.15,143.05,18.6951]
[1750942700219,36.24,143.15,143.06,36.24]
[1750942700821,6.9839,143.13,143.1,6.985]
[1750942701319,36.24,143.15,143.06,36.24]
[1750942701523,4.8131,143.14,143.03,2.4567]
[1750942702113,2.4208,143.13,143.03,2.4567]
[1750942702320,6.9857,143.09,143.06,6.9868]
[1750942702519,36.24,143.1,143.01,36.24]
[1750942703721,6.9868,143.07,143.04,6.9877]
[1750942704219,6.9862,143.08,143.05,6.9874]
[1750942707822,6.9866,143.07,143.01,36.24]
[1750942708420,41.34313789,143.1,143.01,36.24]
[1750942708618,36.24,143.1,143.01,36.24]
[1750942708819,6.9862,143.08,143.05,6.9874]
[1750942709929,6.9862,143.08,143.06,6.987]
[1750942710426,12.08883789,143.09,143.06,6.987]
[1750942710928,5.10313789,143.09,143.07,6.9864]
[1750942712224,12.08873789,143.09,143.06,6.9868]
[1750942713226,5.10313789,143.08,143.06,6.9868]
[1750942713425,5.10313789,143.09,143.07,6.9864]
[1750942715328,43.2252,143.1,143.07,6.9864]
[1750942715528,5.11757517,143.09,143.07,6.9864]
[1750942715826,43.2252,143.1,143.07,6.9864]
[1750942716026,5.11757517,143.09,143.07,6.9864]
[1750942716228,43.2252,143.1,143.07,6.9864]
[1750942716421,5.09503452,143.09,143.07,6.9864]
[1750942716622,43.2252,143.1,143.07,6.9864]
[1750942716823,5.09538519,143.09,143.07,6.9864]
[1750942717030,43.2252,143.1,143.07,6.9864]
[1750942717229,5.09538843,143.09,143.07,6.9864]
[1750942717429,5.09538843,143.08,143.07,6.9864]
[1750942717724,5.09538843,143.09,143.07,6.9864]
[1750942717928,5.09538843,143.08,143.07,6.9864]
[1750942718128,5.09538843,143.09,143.07,6.9864]
[1750942718329,5.09538843,143.08,143.07,6.9864]
[1750942719927,5.09538843,143.08,143.06,6.9868]
[1750942720123,6.9856,143.09,143.06,6.9868]
[1750942720320,5.10581071,143.08,143.06,6.9868]
[1750942720517,6.9856,143.09,143.06,6.9868]
[1750942720726,5.10606913,143.08,143.06,6.9868]
[1750942720925,6.9856,143.09,143.07,6.9865]
[1750942721132,5.10606913,143.08,143.07,6.9865]
[1750942721826,5.10606913,143.08,143.02,6.53173562]
[1750942722030,5.10606913,143.08,143.06,6.9869]
[1750942722422,6.986,143.08,143.06,6.9869]
[1750942722623,5.10820656,143.07,143.05,6.9872]
[1750942723030,12.09480656,143.07,143.01,42.77173562]
[1750942723235,6.9866,143.07,143.01,42.77173562]
[1750942723531,6.9866,143.07,143.04,6.9878]
[1750942726635,6.9866,143.07,143.05,6.9874]
[1750942726836,4.46691774,143.08,143.01,42.77173562]
[1750942727133,5.11188889,143.07,143.01,42.77173562]
[1750942727334,6.9866,143.07,143.04,6.9878]
[1750942727634,6.9866,143.07,143.01,42.77173562]
[1750942728234,6.9866,143.07,143.05,6.9875]
[1750942728437,6.9863,143.08,143.05,6.9875]
[1750942728637,5.09940258,143.07,143.05,6.9875]
[1750942728939,6.9863,143.08,143.05,6.9875]
[1750942729237,12.08600651,143.07,143.05,6.9875]
[1750942729434,6.9866,143.07,143.05,6.9875]
[1750942729630,11.45311774,143.08,143.05,6.9875]
[1750942729831,5.09949468,143.07,143.05,6.9875]
[1750942730035,11.41859862,143.08,143.05,6.9875]
[1750942730234,12.05117617,143.07,143.05,6.9875]
[1750942730435,6.9866,143.07,143.04,6.9877]
[1750942733342,6.9866,143.07,143.01,36.24]
[1750942734137,4.43195664,143.08,143.01,36.24]
[1750942734337,5.06485368,143.07,143.01,42.77173562]
[1750942734532,2.4208,143.13,143.01,42.77173562]
[1750942734533,36.2,143.06,143.02,6.9887]
[1750942734840,5.06414374,143.05,142.99,8.98843562]
[1750942735141,40.63195664,143.06,142.99,2.4567]
[1750942735328,5.06484658,143.05,142.99,2.4567]
[1750942735533,36.2,143.06,142.99,2.4567]
[1750942735838,6.988,143.04,142.99,2.4567]
[1750942736041,36.2,143.06,142.99,2.4567]
[1750942736235,5.06457943,143.05,143.02,6.9885]
[1750942736436,36.2,143.06,143.02,6.9885]
[1750942736636,12.05312294,143.05,143.02,6.9885]
[1750942736837,6.9878,143.05,143.02,6.9885]
[1750942738534,6.9881,143.04,143.01,6.9891]
[1750942738741,6.9881,143.04,142.99,2.4567]
[1750942739133,5.0546936,143.05,142.99,2.4567]
[1750942739331,40.63219219,143.06,142.99,2.4567]
[1750942739529,5.05497902,143.05,142.99,2.4567]
[1750942739730,36.2,143.06,142.98,42.73173562]
[1750942739731,5.05471544,143.04,142.98,42.73173562]
[1750942740035,36.2,143.06,142.98,42.73173562]
[1750942740235,5.05471219,143.05,142.97,6.53173562]
[1750942740432,9.48827756,143.04,142.95,154.72749808]
[1750942740634,14.21477756,143.03,142.93,6.53173562]
[1750942740837,14.21477756,143.03,142.92,7.302]
[1750942740838,45.68827756,143.02,142.92,13.83373562]
[1750942741030,9.48827756,143.01,142.92,13.83373562]
[1750942741237,5.05471219,143.0,142.92,13.83373562]
[1750942741438,5.05471219,142.99,142.92,13.83373562]
[1750942741636,5.05471219,143.0,142.92,13.83373562]
[1750942741836,4.43356537,143.01,142.92,13.83373562]
[1750942742038,5.04990141,143.0,142.92,13.83373562]
[1750942742237,40.63356537,143.02,142.92,13.83373562]
[1750942742436,12.03727636,143.01,142.97,6.9911]
[1750942742636,5.04747636,143.0,142.97,6.9911]
[1750942742843,40.63356537,143.02,142.97,6.9911]
[1750942743043,12.03502461,143.01,142.97,6.9911]
[1750942743245,5.04522461,143.0,142.97,6.9911]
[1750942743446,6.9898,143.01,142.97,6.9911]
[1750942743646,5.0439801,143.0,142.97,6.9911]
[1750942743843,6.99,143.0,142.97,6.9911]
[1750942744946,11.99075867,143.0,142.97,6.9911]
[1750942745147,6.99,143.0,142.97,6.9911]
[1750942745348,11.99075867,143.0,142.97,6.9911]
[1750942745645,6.99,143.0,142.97,6.9911]
[1750942745846,11.99075867,143.0,142.97,6.9911]
[1750942746050,6.99,143.0,142.97,6.9911]
[1750942746247,11.99075867,143.0,142.97,6.9911]
[1750942746448,6.99,143.0,142.97,6.9911]
[1750942746652,11.99075867,143.0,142.97,6.9911]
[1750942746846,11.99045867,143.01,142.97,6.9911]
[1750942747145,5.00075867,143.0,142.97,6.9911]
[1750942747549,11.99075867,143.0,142.97,6.9911]
[1750942747846,6.99,143.0,142.97,6.9911]
[1750942748144,11.99075867,143.0,142.97,6.9911]
[1750942748344,6.99,143.0,142.97,6.9911]
[1750942748546,11.99075867,143.0,142.97,6.9911]
[1750942748750,6.99,143.0,142.97,6.9911]
[1750942748956,11.99075867,143.0,142.97,6.9911]
[1750942749147,6.99,143.0,142.97,6.9911]
[1750942749449,2.2782,143.04,142.92,7.302]
[1750942749450,36.14,143.05,142.94,36.14]
[1750942749749,41.14118375,143.05,143.03,6.9882]
[1750942749947,36.14,143.05,143.03,6.9882]
[1750942750950,9.2786,143.08,142.98,36.14]
[1750942751140,5.01394609,143.07,142.98,42.67173562]
[1750942751540,6.9876,143.05,142.98,42.67173562]
[1750942751749,36.14,143.08,142.98,42.67173562]
[1750942752052,5.01321356,143.07,142.98,42.67173562]
[1750942752249,36.14,143.08,142.98,42.67173562]
[1750942752551,6.9872,143.06,143.03,6.9882]
[1750942754053,12.03714497,143.06,143.02,6.9887]
[1750942754252,6.9872,143.06,143.02,6.9887]
[1750942754556,12.03714497,143.06,143.02,6.9887]
[1750942754745,6.9872,143.06,143.02,6.9887]
[1750942754945,12.03714497,143.06,143.02,6.9887]
[1750942755145,6.9872,143.06,143.02,6.9887]
[1750942755345,6.9872,143.06,142.98,42.67173562]
[1750942755346,12.03714497,143.06,143.03,6.9884]
[1750942755647,6.9872,143.06,143.03,6.9884]
[1750942755850,12.03714497,143.06,143.03,6.9884]
[1750942756155,6.9872,143.06,143.02,6.9887]
[1750942756351,12.03714497,143.06,143.02,6.9887]
[1750942756550,6.9872,143.06,143.02,6.9887]
[1750942756855,12.03714497,143.06,143.02,6.9887]
[1750942757047,6.9872,143.06,143.02,6.9887]
[1750942757355,12.03714497,143.06,143.03,6.9884]
[1750942757550,6.9872,143.06,143.03,6.9884]
[1750942757854,12.03714497,143.06,143.03,6.9884]
[1750942758056,6.9872,143.06,143.03,6.9884]
[1750942758355,12.03714497,143.06,143.03,6.9884]
[1750942758651,6.9872,143.06,143.03,6.9884]
[1750942758862,12.03714497,143.06,143.03,6.9884]
[1750942759048,6.9872,143.06,143.03,6.9884]
[1750942759248,5.04994497,143.06,143.03,6.9884]
[1750942759554,5.04994497,143.06,143.04,6.9879]
[1750942760158,5.04994497,143.07,142.98,42.67173562]
[1750942760355,40.55605253,143.08,142.98,42.67173562]
[1750942760356,36.14,143.08,142.99,6.53173562]
[1750942760556,36.14,143.08,143.06,6.9869]
[1750942760764,36.14,143.08,142.99,20.51263562]
[1750942761157,36.14,143.08,143.05,6.9872]
[1750942761862,43.1265,143.08,143.05,6.9872]
[1750942763845,36.14,143.08,143.06,6.9868]
[1750942764655,43.126,143.08,143.06,6.9868]
[1750942765559,36.14,143.08,143.06,6.9868]
[1750942765754,36.14,143.08,143.02,4.7549]
[1750942765755,36.14,143.08,143.05,6.9873]
[1750942765963,36.14,143.08,143.02,4.7549]
[1750942766454,36.14,143.08,143.06,6.9868]
[1750942767661,36.14,143.08,143.07,6.9865]
[1750942767958,36.12,143.11,143.02,7.1504]
[1750942768173,6.9882,143.04,142.95,6.53173562]
[1750942768459,36.12,143.03,142.96,2.387]
[1750942768663,36.12,143.02,142.96,2.387]
[1750942769254,43.1093,143.02,142.97,6.9914]
[1750942769552,36.12,143.02,142.97,6.9914]
[1750942769861,6.9899,143.01,142.97,6.9914]
[1750942770363,36.12,143.02,142.97,6.9914]
[1750942770558,36.12,143.02,142.95,4.7072]
[1750942772060,6.9904,142.99,142.95,11.6992]
[1750942772467,6.9902,143.0,142.96,6.9916]
[1750942773160,36.12,143.02,142.97,6.9914]
[1750942773457,36.12,143.02,142.95,4.7072]
[1750942775065,6.9895,143.01,142.98,6.9907]
[1750942776862,6.99,143.0,142.97,6.9914]
[1750942778263,41.17636977,143.02,142.95,4.7072]
[1750942778264,6.9897,143.01,142.98,6.9908]
[1750942779160,36.12,143.02,142.99,6.9904]
[1750942779360,41.10233573,143.02,142.99,6.9904]
[1750942779565,36.12,143.02,142.99,6.9904]
[1750942781570,36.12,143.02,142.98,6.9907]
[1750942782271,6.9895,143.01,142.98,6.9907]
[1750942790578,36.12,143.02,142.97,6.991]
[1750942790978,41.10704354,143.02,142.97,6.991]
[1750942791178,36.12,143.02,142.97,6.991]
[1750942791380,6.9898,143.01,142.97,6.991]
[1750942792374,36.12,143.02,142.97,6.991]
[1750942792574,4.98661797,143.01,142.97,6.991]
[1750942792882,6.9902,143.0,142.97,6.991]
[1750942793182,4.98714462,143.01,142.96,6.9916]
[1750942793483,36.12,143.02,142.96,6.9916]
[1750942793681,6.9902,143.0,142.96,6.9916]
[1750942794078,6.9902,143.0,142.97,6.9914]
[1750942796080,11.97775498,143.01,142.98,6.9909]
[1750942796286,4.98805498,143.01,142.98,6.9909]
[1750942797685,4.98805498,143.01,142.99,6.9903]
[1750942799389,11.97755498,143.01,142.98,6.9906]
[1750942799582,11.97755498,143.01,142.95,2.4463]
[1750942799780,4.98805498,143.01,142.95,2.4463]
[1750942799982,41.11063473,143.02,142.95,2.4463]
[1750942800181,36.12,143.02,142.95,2.4463]
[1750942800382,41.11063473,143.02,142.95,2.4463]
[1750942800679,6.9895,143.01,142.98,6.9908]
[1750942801079,43.0695,143.01,142.98,6.9908]
[1750942801284,36.08,143.01,142.99,6.9903]
[1750942802889,43.0695,143.01,142.99,6.9903]
[1750942803094,43.0695,143.01,142.98,6.9906]
[1750942803382,36.08,143.01,142.94,6.51693992]
[1750942803583,36.08,143.01,142.98,6.9909]
[1750942803780,36.08,143.01,142.94,6.51693992]
[1750942804589,43.0697,143.01,142.94,6.51693992]
[1750942805876,43.0697,143.01,142.98,6.9905]
[1750942807188,6.9899,143.0,142.97,6.9912]
[1750942807381,6.9899,143.0,142.94,6.51693992]
[1750942807587,36.08,143.01,142.94,6.51693992]
[1750942807790,11.96729177,143.0,142.97,6.9911]
[1750942808086,6.99,143.0,142.97,6.9911]
[1750942808292,36.08,143.01,142.97,6.9911]
[1750942808492,4.9792852,143.0,142.98,6.9909]
[1750942808694,43.0697,143.01,142.98,6.9909]
[1750942808894,4.9792852,143.0,142.98,6.9909]
[1750942809186,43.0697,143.01,142.98,6.9909]
[1750942809392,4.97924851,143.0,142.98,6.9909]
[1750942809592,43.0697,143.01,142.98,6.9909]
[1750942809794,4.97923819,143.0,142.98,6.9909]
[1750942809993,43.0697,143.01,142.98,6.9909]
[1750942810194,4.97897691,143.0,142.98,6.9909]
[1750942810388,4.97897691,142.99,142.98,6.9909]
[1750942811292,43.0697,143.01,142.93,13.9867]
[1750942811293,4.36142573,143.03,142.97,6.51693992]
[1750942811494,4.98590006,143.02,142.97,6.51693992]
[1750942811695,4.3622738,143.03,143.02,6.989]
[1750942811889,9.34843697,143.03,143.02,6.989]
[1750942812088,639.98,143.07,143.0,6.51693992]
[1750942812402,9.35394271,143.06,143.01,6.51693992]
[1750942812597,9.35332138,143.05,143.0,6.51693992]
[1750942812794,4.98749789,143.04,143.0,6.51693992]